bitfinex-derivatives/quotes_ETHF0:USTF0_20250309
["timestamp","ask_amount","ask_price","bid_price","bid_amount"]
[1741515679172,3.2078,2155.7,2155.3,3.2078]
[1741515679173,0.55684,2155.4,2155.3,3.2078]
[1741515679377,0.55684,2155.4,2155.3,0.00695217]
[1741515679676,3.76464,2155.4,2155.3,0.00695217]
[1741515680079,7.76464,2155.4,2155.3,0.00695217]
[1741515681281,3.76464,2155.4,2155.3,0.00695217]
[1741515683478,3.2078,2155.4,2155.3,0.00695217]
[1741515683872,3.2078,2155.4,2155.3,0.79185054]
[1741515684170,0.00695217,2155.8,2155.7,0.55676]
[1741515684374,0.00695217,2155.8,2155.7,2.89476]
[1741515684582,3.2078,2156.0,2155.8,0.55671]
[1741515684771,3.2078,2156.3,2155.8,0.78489837]
[1741515685070,3.2078,2156.3,2156.1,0.55663]
[1741515685269,3.2078,2156.3,2155.7,6.93765]
[1741515685270,3.2078,2156.3,2155.8,1.43909837]
[1741515685473,3.2078,2156.3,2156.2,0.55663]
[1741515685674,3.21475217,2156.3,2156.2,0.55663]
[1741515685879,0.00695217,2156.3,2156.2,1.34152837]
[1741515686075,0.00695217,2156.3,2155.8,2.9902]
[1741515686277,0.00695217,2156.3,2156.0,0.55667]
[1741515686479,0.55663,2156.2,2155.9,0.78489837]
[1741515686784,3.2078,2156.0,2155.7,0.2026]
[1741515687083,3.2078,2156.0,2155.2,1.5604]
[1741515687084,0.55684,2155.4,2155.3,0.00695217]
[1741515687385,3.2078,2155.5,2155.4,0.55684]
[1741515687882,3.2078,2155.5,2155.3,0.00695217]
[1741515687883,0.55684,2155.4,2155.3,0.00695217]
[1741515688082,3.2078,2155.5,2155.3,0.00695217]
[1741515688276,3.76462,2155.5,2155.3,0.00695217]
[1741515688478,3.2078,2155.5,2155.3,0.00695217]
[1741515688977,0.5568,2155.6,2155.3,0.56380217]
[1741515689182,3.2078,2155.8,2155.5,0.55681]
[1741515689383,3.2078,2155.8,2155.5,2.35]
[1741515689579,3.76455,2155.8,2155.5,2.35]
[1741515689883,0.55677,2155.7,2155.5,2.35]
[1741515690081,0.55678,2155.6,2155.5,2.35]
[1741515690283,4.904,2155.7,2155.5,0.0195]
[1741515690484,0.55678,2155.6,2155.5,0.0195]
[1741515691081,4.55678,2155.6,2155.5,0.0195]
[1741515691281,4.55678,2155.6,2155.5,0.01254783]
[1741515691486,0.55678,2155.6,2155.5,0.01254783]
[1741515691689,4.904,2155.7,2155.5,0.01254783]
[1741515691885,3.2078,2155.8,2155.5,0.01254783]
[1741515692289,0.55674,2155.8,2155.5,0.56934783]
[1741515692588,0.55671,2155.9,2155.6,0.55678]
[1741515692888,3.2078,2156.1,2155.5,0.56933783]
[1741515693095,0.55674,2155.8,2155.5,0.56933783]
[1741515693284,3.2078,2156.1,2155.5,0.01254783]
[1741515693590,3.76446,2156.1,2155.8,0.55672]
[1741515694184,3.2078,2156.1,2155.9,0.5567]
[1741515694390,3.2078,2156.1,2155.6,5.5698]
[1741515694686,3.2078,2156.1,2156.0,0.55668]
[1741515695084,0.00695217,2156.3,2156.2,0.55663]
[1741515695290,0.6317,2157.0,2156.1,2.59131]
[1741515695487,0.55645,2156.9,2156.5,0.55654]
[1741515695686,0.55643,2157.0,2156.7,0.5565]
[1741515695881,3.2078,2157.1,2156.7,0.5565]
[1741515696089,0.55646,2156.9,2156.5,0.55653]
[1741515696292,0.55646,2156.9,2156.4,2.36]
[1741515696293,3.2078,2157.1,2156.4,2.36]
[1741515696587,0.00695217,2156.9,2156.5,0.00695217]
[1741515696983,0.00695217,2156.9,2156.7,0.5565]
[1741515697289,0.00695217,2156.9,2156.8,2.91147]
[1741515697690,3.2078,2157.4,2157.1,0.55637]
[1741515697885,3.2078,2157.4,2156.8,2.355]
[1741515698292,3.76412,2157.4,2157.1,0.5564]
[1741515698490,3.2078,2157.4,2156.8,2.9734]
[1741515698689,3.2078,2157.4,2157.0,0.55642]
[1741515698992,0.00695217,2157.3,2156.8,2.9734]
[1741515699191,0.00695217,2157.3,2157.0,0.55641]
[1741515699392,0.00695217,2157.3,2156.9,0.7537]
[1741515699587,0.00695217,2157.3,2157.2,3.76417]
[1741515699783,3.2078,2157.8,2157.2,5.5568]
[1741515699991,3.2078,2157.8,2157.5,0.55628]
[1741515700493,3.2078,2157.8,2157.3,0.6119]
[1741515700494,3.2078,2157.8,2157.6,0.55626]
[1741515700692,0.55625,2157.7,2157.4,0.55631]
[1741515700888,3.2078,2157.8,2157.5,0.55628]
[1741515701196,3.2078,2157.8,2157.5,0.55629]
[1741515701497,3.2078,2157.8,2157.5,0.55628]
[1741515702596,3.2078,2157.8,2157.5,1.25938]
[1741515702891,3.2078,2157.8,2157.5,0.7031]
[1741515703091,3.2078,2157.8,2157.5,0.68919566]
[1741515703092,0.55627,2157.6,2157.5,0.68919566]
[1741515703289,2.68134,2157.7,2156.9,1.31015]
[1741515703489,3.76411,2157.5,2157.2,0.55637]
[1741515703684,3.2078,2157.5,2157.4,0.55632]
[1741515704889,0.00695217,2157.9,2157.7,0.55623]
[1741515705496,0.56316217,2157.9,2157.6,0.56322217]
[1741515705698,0.00695217,2157.9,2157.6,0.00695217]
[1741515705891,0.00695217,2157.9,2157.7,0.55623]
[1741515706299,0.00695217,2157.9,2157.8,0.55622]
[1741515707097,0.00695217,2157.9,2157.8,2.89822]
[1741515709606,0.00695217,2157.9,2157.7,2.4377]
[1741515709804,0.00695217,2157.9,2157.8,2.89022]
[1741515712905,0.00695217,2157.9,2157.8,2.334]
[1741515713108,0.00695217,2157.9,2157.8,2.89022]
[1741515713605,0.00695217,2157.9,2157.8,2.334]
[1741515714009,0.00695217,2157.9,2157.8,2.89022]
[1741515714301,0.00695217,2157.9,2157.7,2.5424]
[1741515714498,3.21475217,2157.9,2157.7,4.8644]
[1741515715007,3.21475217,2157.9,2157.8,0.55622]
[1741515715199,3.21475217,2157.9,2157.7,5.42062]
[1741515715502,0.00695217,2157.9,2157.8,0.55622]
[1741515715909,3.2078,2158.3,2158.2,0.55611]
[1741515717202,0.00457906,2158.5,2158.1,2.32]
[1741515717411,0.56061906,2158.5,2158.1,2.32]
[1741515717607,0.56061906,2158.5,2158.2,0.55611]
[1741515717803,0.00457906,2158.5,2158.3,0.55608]
[1741515718112,0.00457906,2158.5,2158.1,2.32]
[1741515718302,0.00457906,2158.5,2158.0,3.2078]
[1741515718303,0.55614,2158.1,2158.0,3.2078]
[1741515718502,0.55614,2158.1,2157.8,2.8772]
[1741515718503,0.55615,2158.1,2157.8,2.8772]
[1741515718807,3.2078,2158.4,2157.8,2.321]
[1741515719202,0.5561,2158.3,2158.0,0.55616]
[1741515719408,0.5561,2158.3,2157.8,2.321]
[1741515719701,3.2078,2158.4,2158.0,0.7525]
[1741515719897,0.55611,2158.3,2158.0,1.30866]
[1741515720095,3.2078,2158.4,2158.3,0.55609]
[1741515720296,3.2078,2158.4,2158.0,0.7525]
[1741515720502,3.2078,2158.4,2158.3,0.55609]
[1741515720704,0.00457906,2158.5,2158.4,0.55606]
[1741515721101,0.00457906,2158.5,2158.3,5.5348]
[1741515721309,0.56063906,2158.5,2158.3,2.327]
[1741515721701,0.00457906,2158.5,2158.3,2.327]
[1741515721901,0.55606,2158.4,2158.3,2.327]
[1741515722198,0.00457906,2158.5,2158.3,2.327]
[1741515722509,0.00457906,2158.5,2158.3,3.98307]
[1741515723406,0.00457906,2158.5,2158.3,3.427]
[1741515723407,0.56061906,2158.5,2158.3,3.427]
[1741515723609,0.56061906,2158.5,2158.3,3.98309]
[1741515723610,0.00457906,2158.5,2158.3,3.98309]
[1741515723814,0.56062906,2158.5,2158.3,3.427]
[1741515724113,0.56062906,2158.5,2158.3,2.327]
[1741515724114,0.00457906,2158.5,2158.3,2.327]
[1741515724307,0.55606,2158.4,2158.2,2.948]
[1741515724511,0.00457906,2158.5,2158.2,2.948]
[1741515724711,0.55608,2158.4,2158.2,2.948]
[1741515724919,0.55608,2158.4,2158.2,3.1024]
[1741515725307,0.55608,2158.4,2158.2,0.7844]
[1741515725509,0.56062906,2158.5,2158.3,2.314]
[1741515725810,0.00457906,2158.5,2158.3,2.314]
[1741515726006,0.00457906,2158.5,2158.3,2.87008]
[1741515726205,0.00457906,2158.5,2158.4,0.55606]
[1741515728616,0.00457906,2158.5,2158.4,2.86206]
[1741515730211,0.00457906,2158.5,2158.4,2.85706]
[1741515731716,0.00457906,2158.5,2158.4,2.301]
[1741515731914,0.00457906,2158.5,2158.3,6.9597]
[1741515732118,0.00457906,2158.5,2158.4,2.85306]
[1741515732313,0.00457906,2158.5,2158.4,2.297]
[1741515732513,0.00457906,2158.5,2158.4,2.85306]
[1741515733217,0.55606,2158.4,2158.3,6.9597]
[1741515733515,0.55606,2158.4,2158.3,6.0459]
[1741515733818,0.55606,2158.4,2158.3,3.7519]
[1741515734011,1.81116,2158.4,2158.3,3.7519]
[1741515734913,5.81116,2158.4,2158.3,3.7519]
[1741515735611,10.71516,2158.4,2158.3,0.34181]
[1741515735808,13.00616,2158.4,2158.3,0.12881]
[1741515736514,12.38326,2158.4,2158.3,0.12881]
[1741515736820,0.55624,2157.7,2157.6,0.00695217]
[1741515737013,3.76404,2157.7,2157.6,0.00695217]
[1741515737216,7.76404,2157.7,2157.6,0.00695217]
[1741515739012,3.2078,2157.7,2157.6,0.00695217]
[1741515739217,3.2078,2157.7,2157.6,0.84644054]
[1741515739518,3.76404,2157.7,2157.6,0.29017054]
[1741515739721,3.2078,2157.7,2157.6,0.84644054]
[1741515740127,4.904,2157.9,2157.8,0.55622]
[1741515740319,0.55622,2157.8,2157.7,0.28321837]
[1741515740818,0.55624,2157.7,2157.6,1.22165217]
[1741515741120,3.76404,2157.7,2157.6,0.89827054]
[1741515741621,3.76404,2157.7,2157.6,0.00695217]
[1741515742916,7.76404,2157.7,2157.6,0.00695217]
[1741515743314,3.76404,2157.7,2157.6,0.00695217]
[1741515743712,3.2078,2157.7,2157.6,0.84644054]
[1741515744426,7.885,2157.8,2157.6,1.55527054]
[1741515744624,11.64902,2157.8,2157.7,0.28321837]
[1741515744823,11.64902,2157.8,2157.6,0.91517054]
[1741515744824,11.0928,2157.8,2157.6,0.91517054]
[1741515745121,3.2078,2157.8,2157.6,0.00695217]
[1741515745423,0.55624,2157.7,2157.6,0.00695217]
[1741515746819,0.55624,2157.7,2157.6,0.29017054]
[1741515747525,3.2078,2157.8,2157.6,0.29017054]
[1741515747724,3.76402,2157.8,2157.7,0.28321837]
[1741515748120,3.2078,2157.8,2157.7,0.28321837]
[1741515748526,3.2078,2157.8,2157.7,0.93701837]
[1741515748919,12.29320819,2157.9,2157.7,1.49325837]
[1741515749219,4.19140819,2157.9,2157.8,0.89421837]
[1741515749922,4.74759819,2157.9,2157.8,0.89421837]
[1741515750429,4.19140819,2157.9,2157.8,1.45043837]
[1741515750616,4.74759819,2157.9,2157.8,0.89421837]
[1741515750926,4.74759819,2157.9,2157.8,3.17021837]
[1741515751129,4.19140819,2157.9,2157.6,0.00695217]
[1741515751324,0.55624,2157.7,2157.6,0.00695217]
[1741515751923,0.55624,2157.7,2157.6,0.29017054]
[1741515752125,0.55624,2157.8,2157.6,0.29017054]
[1741515752324,0.55622,2157.8,2157.7,0.28321837]
[1741515753227,0.55624,2157.7,2157.6,0.00695217]
[1741515753629,0.55624,2157.7,2157.6,0.29017054]
[1741515754022,3.2078,2158.2,2157.6,0.29017054]
[1741515754331,0.55622,2157.8,2157.7,0.91911837]
[1741515755225,0.55624,2157.7,2157.6,0.00695217]
[1741515755529,0.55627,2157.6,2157.5,1.5572]
[1741515755733,3.76407,2157.6,2157.5,1.5572]
[1741515755920,3.76407,2157.6,2157.5,0.8052]
[1741515757631,0.55627,2157.6,2157.5,1.08841837]
[1741515761332,7.76407,2157.6,2157.5,0.33651833]
[1741515761633,0.5564,2157.1,2156.8,20.8]
[1741515761830,0.5564,2157.1,2157.0,0.89401837]
[1741515763731,0.5564,2157.1,2157.0,0.6108]
[1741515763925,0.55645,2156.9,2156.8,20.80695217]
[1741515764535,0.55645,2156.9,2156.8,21.09017054]
[1741515764736,0.00695217,2157.3,2156.8,21.71037054]
[1741515764927,1.39094,2157.2,2156.9,0.28321837]
[1741515765129,0.55642,2157.0,2156.9,0.28321837]
[1741515765429,0.5564,2157.1,2157.0,0.28321837]
[1741515765631,0.55642,2157.0,2156.9,0.28321837]
[1741515766724,0.55642,2157.0,2156.8,21.42715217]
[1741515766930,0.55645,2156.9,2156.8,2.17e-06]
[1741515767124,3.76425,2156.9,2156.8,2.17e-06]
[1741515767334,7.2078,2156.9,2156.6,0.1144]
[1741515767636,0.55663,2156.2,2156.1,3.8536]
[1741515767935,3.2078,2156.8,2156.2,0.28321837]
[1741515768135,3.2078,2156.8,2156.3,0.6187]
[1741515768136,0.55658,2156.4,2156.3,0.6187]
[1741515768432,0.55658,2156.4,2156.3,0.90191837]
[1741515775638,0.55658,2156.4,2156.3,0.28321837]
[1741515780439,0.5566,2156.3,2156.2,0.0244]
[1741515780741,0.5566,2156.3,2156.2,0.30761837]
[1741515781238,3.7644,2156.3,2156.2,0.0244]
[1741515782144,0.5566,2156.3,2156.2,0.86424837]
[1741515782443,0.5566,2156.4,2156.3,0.5566]
[1741515782639,4.904,2156.6,2156.3,1.53871837]
[1741515782840,0.55655,2156.5,2156.4,0.88501837]
[1741515783340,4.904,2156.6,2156.4,1.44158837]
[1741515783542,5.46054,2156.6,2156.5,0.28321837]
[1741515784643,0.55654,2156.6,2156.5,0.28321837]
[1741515784843,0.55651,2156.7,2156.5,6.27954837]
[1741515785150,4.4638,2157.1,2156.6,0.28321837]
[1741515785151,3.8429,2157.1,2156.6,0.28321837]
[1741515785539,0.55647,2156.8,2156.7,0.28321837]
[1741515785849,0.55652,2156.7,2156.6,0.28321837]
[1741515786244,0.5565,2156.7,2156.6,0.28321837]
[1741515787152,0.55653,2156.6,2156.5,0.0388]
[1741515787852,0.55653,2156.6,2156.5,0.32201837]
[1741515788848,8.1118,2156.8,2156.5,0.32201837]
[1741515789047,0.55653,2156.6,2156.5,0.0388]
[1741515789446,0.55653,2156.6,2156.5,0.92831837]
[1741515790147,3.2078,2156.8,2156.5,0.32201837]
[1741515790451,0.5565,2156.7,2156.6,0.28321837]
[1741515790651,3.76427,2156.8,2156.7,0.28321837]
[1741515790857,0.5565,2156.7,2156.6,0.28321837]
[1741515791046,3.2078,2156.8,2156.6,0.28321837]
[1741515791250,3.76428,2156.8,2156.7,0.28321837]
[1741515791449,0.5565,2156.7,2156.6,0.28321837]
[1741515793652,3.7643,2156.7,2156.6,0.28321837]
[1741515795449,0.5565,2156.7,2156.6,0.28321837]
[1741515796358,0.55653,2156.6,2156.5,0.1496]
[1741515796553,0.55663,2156.2,2156.1,0.00695217]
[1741515796751,0.55663,2156.2,2156.1,0.29017054]
[1741515799966,7.885,2156.7,2156.1,3.49797054]
[1741515800160,0.5566,2156.3,2156.2,0.83983837]
[1741515800363,0.5566,2156.3,2156.2,0.28321837]
[1741515802163,7.885,2156.7,2156.2,0.28321837]
[1741515802368,0.55658,2156.4,2156.3,0.28321837]
[1741515803965,5.21743,2156.8,2156.3,0.28321837]
[1741515804164,0.55655,2156.5,2156.4,0.28321837]
[1741515804375,5.21743,2156.8,2156.3,0.28321837]
[1741515804559,0.55658,2156.4,2156.3,0.28321837]
[1741515804764,0.55658,2156.4,2156.2,2.78061]
[1741515804964,0.55658,2156.4,2156.3,0.28321837]
[1741515806076,0.55663,2156.2,2156.1,0.00695217]
[1741515806570,0.55663,2156.2,2156.1,0.29017054]
[1741515808075,3.8095,2156.5,2156.1,0.29017054]
[1741515808276,0.55663,2156.2,2156.1,0.00695217]
[1741515808575,0.55662,2156.3,2156.2,0.28321837]
[1741515808974,0.55662,2156.3,2156.2,1.49044837]
[1741515809178,0.55662,2156.3,2156.2,0.93381837]
[1741515809573,5.84956,2156.8,2156.2,0.93381837]
[1741515809773,4.4583,2156.8,2156.3,3.11751837]
[1741515809974,4.4583,2156.8,2156.4,3.8096]
[1741515810176,0.55655,2156.5,2156.4,4.09281837]
[1741515810371,4.4583,2156.8,2156.4,4.09281837]
[1741515810372,4.4583,2156.8,2156.5,0.28321837]
[1741515810681,0.55653,2156.6,2156.5,0.28321837]
[1741515810878,0.55653,2156.6,2156.4,4.36617]
[1741515811067,1.98591,2157.0,2156.5,0.28321837]
[1741515811572,0.55653,2156.6,2156.4,4.36617]
[1741515811876,0.55653,2156.6,2156.5,0.28321837]
[1741515813977,14.04938079,2156.8,2156.5,0.28321837]
[1741515814174,0.5565,2156.7,2156.6,0.28321837]
[1741515814376,0.55655,2156.6,2156.5,0.28321837]
[1741515816382,0.55663,2156.2,2156.1,0.00695217]
[1741515816571,3.76443,2156.2,2156.1,0.00695217]
[1741515818175,3.76443,2156.2,2155.6,3.2078]
[1741515818176,7.2078,2156.2,2155.6,3.2078]
[1741515818370,0.55675,2155.8,2155.7,0.28321837]
[1741515820481,0.55677,2155.7,2155.5,0.57174217]
[1741515820684,0.55674,2155.8,2155.7,0.55675]
[1741515820878,1.25215217,2156.0,2155.6,0.28321837]
[1741515821076,1.25215217,2156.0,2155.7,0.28321837]
[1741515821276,0.55674,2155.8,2155.6,0.83997837]
[1741515821476,0.55672,2155.9,2155.7,0.64964]
[1741515821676,0.55672,2155.9,2155.8,0.28321837]
[1741515826694,1.15822,2155.9,2155.8,0.28321837]
[1741515826983,3.21475217,2156.0,2155.7,0.0929]
[1741515827191,0.55673,2155.8,2155.7,0.0929]
[1741515827589,0.55673,2155.8,2155.7,0.37611837]
[1741515836090,0.55673,2155.8,2155.7,0.0929]
[1741515836295,0.55678,2155.6,2155.5,0.00695217]
[1741515836590,0.55678,2155.6,2155.5,0.29017054]
[1741515837192,3.76458,2155.6,2155.5,0.29017054]
[1741515837397,4.40078,2155.6,2155.5,0.29017054]
[1741515837994,4.40078,2155.6,2155.5,0.00695217]
[1741515838498,4.40078,2155.6,2155.5,0.29017054]
[1741515839103,4.40078,2155.6,2155.5,0.00695217]
[1741515840696,0.55681,2155.5,2155.4,0.1361]
[1741515840895,0.55681,2155.5,2155.4,0.41931837]
[1741515841091,0.55686,2155.3,2155.2,0.6308]
[1741515841297,0.55694,2155.0,2154.9,4.3078]
[1741515841491,0.55694,2155.0,2154.9,4.9178]
[1741515841802,0.55694,2155.0,2154.9,5.20101837]
[1741515842304,0.55694,2155.0,2154.9,4.10101837]
[1741515842505,0.55694,2155.0,2154.9,4.73181837]
[1741515842804,3.76474,2155.0,2154.9,1.52401837]
[1741515843099,3.76474,2155.0,2154.9,0.28321837]
[1741515844106,0.55697,2154.9,2154.8,1.8473]
[1741515844303,0.55697,2154.9,2154.8,2.13051837]
[1741515844698,0.55697,2154.9,2154.8,1.51401837]
[1741515844900,0.55697,2154.9,2154.8,0.28321837]
[1741515845101,0.55699,2154.8,2154.7,0.02755217]
[1741515846399,0.55699,2154.8,2154.7,2.17e-06]
[1741515848208,9.50417,2155.0,2154.6,2.17e-06]
[1741515848403,3.76482,2154.7,2154.6,0.28322054]
[1741515849395,3.2078,2154.7,2154.4,20.827]
[1741515849598,0.55707,2154.5,2154.4,20.827]
[1741515849798,0.55707,2154.5,2153.5,4.085]
[1741515849799,0.5573,2153.6,2153.5,1.1]
[1741515850002,0.55733,2153.5,2153.4,1.2649]
[1741515850808,0.55733,2153.5,2153.4,0.6104]
[1741515851305,11.5928,2153.5,2152.7,0.4648]
[1741515851506,11.5928,2153.5,2152.2,10.78925478]
[1741515851507,3.1619,2152.8,2152.2,10.78925478]
[1741515851707,3.2078,2152.9,2152.2,10.78925478]
[1741515851906,0.55764,2152.3,2152.2,10.78925478]
[1741515852210,0.00696864,2152.7,2152.2,10.78925478]
[1741515852403,3.2078,2153.5,2152.8,0.5575]
[1741515852609,3.2078,2153.5,2153.0,3.2078]
[1741515852807,3.2078,2153.8,2153.0,3.2078]
[1741515853007,3.2078,2153.8,2153.4,3.2078]
[1741515853202,3.2078,2153.8,2152.9,0.4918]
[1741515853203,0.55746,2153.0,2152.9,0.4918]
[1741515853405,0.55746,2153.0,2152.9,0.027]
[1741515855411,7.885,2153.1,2152.1,23.144]
[1741515855612,0.55765,2152.3,2152.1,20.837]
[1741515856110,5.5158,2152.8,2152.2,3.2078]
[1741515856303,3.2078,2152.8,2152.2,3.2078]
[1741515856510,5.52076864,2153.2,2152.3,1.1]
[1741515856702,0.00696864,2153.2,2152.9,0.55747]
[1741515856907,0.00696864,2153.2,2153.0,1.80475]
[1741515857100,0.00696864,2153.2,2153.0,1.2473]
[1741515857504,0.00696864,2153.2,2153.1,0.55743]
[1741515857812,2.315,2153.9,2153.1,5.5238]
[1741515858022,3.2078,2154.0,2153.4,0.55733]
[1741515858210,3.2078,2154.0,2153.5,0.6154]
[1741515858401,0.55726,2153.8,2153.6,0.6105]
[1741515858606,3.2078,2154.0,2153.6,0.6105]
[1741515858806,0.55725,2153.8,2153.6,0.6358]
[1741515859011,0.55728,2153.7,2153.6,0.6358]
[1741515859315,0.00696864,2153.9,2153.6,0.6358]
[1741515859505,0.55728,2153.7,2153.6,0.6358]
[1741515859705,0.00696864,2153.9,2153.6,0.6358]
[1741515859905,0.55728,2153.7,2153.6,0.0253]
[1741515860710,0.00696864,2153.9,2153.6,0.0253]
[1741515860909,0.56419864,2153.9,2153.6,0.68]
[1741515861107,0.55728,2153.7,2153.6,0.68]
[1741515862311,0.55728,2153.7,2153.6,0.0253]
[1741515863113,0.55727,2153.8,2153.6,0.0253]
[1741515863412,0.00696864,2153.9,2153.8,0.55725]
[1741515864309,0.00696864,2153.9,2153.7,4.4992]
[1741515864513,0.00696864,2153.9,2153.8,0.55725]
[1741515866014,3.76494,2154.3,2154.0,0.55718]
[1741515866317,3.76493,2154.3,2154.1,0.6591]
[1741515866513,3.2078,2154.3,2154.1,0.6591]
[1741515866717,3.76492,2154.3,2154.1,0.6591]
[1741515866919,3.2078,2154.3,2154.2,0.6456]
[1741515867112,3.76492,2154.3,2154.2,0.6456]
[1741515868317,7.2078,2154.3,2153.6,0.0253]
[1741515868622,3.2078,2154.0,2153.6,0.0253]
[1741515869126,0.55728,2153.7,2153.6,0.0253]
[1741515869627,3.2078,2154.0,2153.6,0.0253]
[1741515869818,0.55726,2153.8,2153.6,0.58259]
[1741515870018,0.55728,2153.7,2153.6,0.0253]
[1741515870617,0.55724,2153.9,2153.6,0.0253]
[1741515870819,3.2078,2154.0,2153.6,0.6273]
[1741515871022,0.55723,2153.9,2153.7,0.55726]
[1741515871222,3.2078,2154.0,2153.6,0.6273]
[1741515871430,3.2078,2154.0,2153.9,0.55722]
[1741515871629,3.2078,2154.3,2153.6,2.9253]
[1741515871928,0.00696864,2154.4,2154.3,0.55712]
[1741515873626,0.55697,2154.9,2154.1,5.20164]
[1741515873932,3.76476,2155.0,2154.7,0.55701]
[1741515874126,3.2078,2155.0,2154.5,2.294]
[1741515874422,3.2078,2155.0,2154.9,0.55697]
[1741515875227,0.00696864,2155.2,2155.0,0.55693]
[1741515875829,0.00696864,2155.2,2154.8,0.7204]
[1741515876035,0.56386864,2155.2,2154.9,0.55696]
[1741515876527,3.2078,2155.1,2154.8,0.1195]
[1741515876731,0.55697,2154.9,2154.8,0.1195]
[1741515876931,3.76473,2155.1,2154.8,0.67648]
[1741515877233,0.55697,2154.9,2154.8,0.1195]
[1741515878530,3.2078,2155.1,2154.8,0.1195]
[1741515878732,3.2078,2155.1,2154.9,0.55695]
[1741515878929,3.21476864,2155.2,2154.8,0.7164]
[1741515879130,3.21476864,2155.2,2155.0,0.55692]
[1741515879332,3.21476864,2155.2,2155.1,0.55691]
[1741515879830,3.77166864,2155.2,2155.0,0.55693]
[1741515880032,3.21476864,2155.2,2154.9,0.0698]
[1741515880229,3.21476864,2155.2,2155.1,0.55691]
[1741515880629,3.77166864,2155.2,2155.0,0.55692]
[1741515880941,3.21476864,2155.2,2155.0,0.55694]
[1741515881228,3.77166864,2155.2,2155.0,0.55693]
[1741515881633,3.21476864,2155.2,2154.9,0.0698]
[1741515881835,3.21476864,2155.2,2155.1,0.55691]
[1741515882939,14.04938079,2155.5,2155.4,0.55684]
[1741515884341,14.04938079,2155.5,2155.1,3.76471]
[1741515884342,0.00696864,2155.7,2155.6,0.55678]
[1741515884734,0.00696864,2155.7,2155.5,0.55679]
[1741515885043,0.00696864,2155.7,2155.6,0.55678]
[1741515885430,0.00696864,2155.7,2155.3,2.273]
[1741515885635,3.2078,2155.4,2155.3,2.273]
[1741515885935,3.2078,2155.4,2155.3,2.82986]
[1741515887844,0.00696864,2155.7,2155.3,2.273]
[1741515888038,0.56373864,2155.7,2155.5,0.5568]
[1741515889142,0.56372864,2155.7,2155.5,0.55679]
[1741515889444,0.00696864,2155.7,2155.3,2.273]
[1741515889642,0.00696864,2155.7,2155.6,0.55678]
[1741515890337,0.55678,2155.6,2155.5,0.6449]
[1741515890541,0.55683,2155.5,2155.3,2.273]
[1741515890741,0.55683,2155.5,2155.3,2.82986]
[1741515891042,0.61316864,2155.7,2155.2,0.6449]
[1741515891245,0.55688,2155.3,2155.1,0.55691]
[1741515891445,3.2078,2155.4,2155.0,0.641]
[1741515891841,3.76464,2155.4,2155.2,0.55687]
[1741515892447,3.76464,2155.4,2155.0,0.641]
[1741515892647,3.76464,2155.4,2155.2,0.55689]
[1741515892941,3.76464,2155.4,2155.1,0.5569]
[1741515893147,3.76464,2155.4,2155.2,0.55689]
[1741515893344,3.2078,2155.4,2155.0,0.641]
[1741515893547,0.61316864,2155.7,2155.4,0.55681]
[1741515893548,3.21476864,2155.7,2155.4,0.55681]
[1741515893751,3.77154864,2155.7,2155.5,0.5957]
[1741515894350,0.55678,2155.6,2155.5,0.5957]
[1741515895147,3.21476864,2155.7,2155.5,0.5957]
[1741515895650,3.21476864,2155.7,2155.4,0.2351]
[1741515896149,0.55681,2155.5,2155.4,0.2351]
[1741515896547,0.55681,2155.5,2155.0,1.19793]
[1741515896548,1.39208,2155.5,2155.0,1.19793]
[1741515896749,0.55691,2155.1,2155.0,0.641]
[1741515897441,0.55691,2155.1,2155.0,1.19793]
[1741515897648,3.2078,2155.3,2155.0,1.19793]
[1741515897951,0.55689,2155.2,2155.0,1.19792]
[1741515898651,3.2078,2155.3,2155.0,0.641]
[1741515898949,0.55691,2155.2,2155.1,0.55691]
[1741515899149,0.55691,2155.1,2155.0,1.19793]
[1741515899349,3.2078,2155.3,2154.9,0.0698]
[1741515899549,0.55694,2155.0,2154.9,0.0698]
[1741515899751,4.59998,2155.3,2154.9,0.0698]
[1741515899752,3.2078,2155.3,2154.9,0.0698]
[1741515900352,0.55694,2155.0,2154.9,0.0698]
[1741515900548,3.2078,2155.3,2154.9,0.0698]
[1741515900753,0.55689,2155.2,2154.9,0.0698]
[1741515901051,3.2078,2155.3,2154.9,0.0698]
[1741515901241,0.55694,2155.0,2154.9,0.0698]
[1741515901752,3.76474,2155.0,2154.9,0.0698]
[1741515905150,3.76474,2155.0,2153.5,23.61955]
[1741515905151,15.0928,2155.0,2153.5,23.61955]
[1741515905451,0.5572,2154.0,2153.9,0.55721]
[1741515905853,3.2078,2154.1,2153.9,0.55721]
[1741515906158,3.2078,2154.1,2154.0,0.5572]
[1741515906455,3.2078,2154.1,2153.8,0.00696864]
[1741515906654,3.2078,2154.1,2154.0,0.5572]
[1741515907156,3.2078,2154.1,2153.8,0.00696864]
[1741515907354,3.2078,2154.1,2153.9,0.55721]
[1741515907855,3.76497,2154.1,2154.0,0.6572]
[1741515908257,3.2078,2154.1,2153.8,0.00696864]
[1741515908559,0.52502,2153.9,2153.8,0.07376864]
[1741515910655,7.16,2154.0,2153.2,1.2838]
[1741515910853,0.55738,2153.3,2153.2,1.2838]
[1741515911057,3.76518,2153.3,2153.2,1.2838]
[1741515911253,0.55743,2153.1,2153.0,1.599]
[1741515911453,0.55743,2153.2,2153.0,1.599]
[1741515911655,3.76519,2153.3,2153.0,0.499]
[1741515911854,0.55741,2153.2,2153.0,0.499]
[1741515912055,3.2078,2153.3,2153.0,1.599]
[1741515912255,3.2078,2153.3,2153.2,0.55741]
[1741515912454,3.2078,2153.6,2153.2,2.263]
[1741515912662,3.2078,2153.6,2153.3,1.19987]
[1741515912860,0.55734,2153.5,2153.4,1.2709]
[1741515913157,0.55734,2153.5,2153.4,0.6317]